fUST/lending_fUST_20241231
["ID","MTS","AMOUNT","RATE_DAILY","PERIOD"]
[347257729,1735642247162,-501.66850296,0.00019452,3]
[347257730,1735642247172,-188.79505725,0.00019452,3]
[347257731,1735642247181,-499.03558,0.00019452,3]
[347257732,1735642247191,-501.57767643,0.00019452,3]
[347257733,1735642247200,-500.0,0.00019452,3]
[347257734,1735642247209,-500.0,0.00019452,3]
[347257735,1735642247219,-6980.9,0.00019452,3]
[347257736,1735642247228,-566.65212978,0.00019452,3]
[347257737,1735642247237,-500.0,0.00019452,3]
[347257738,1735642247246,-500.0,0.00019452,3]
[347257739,1735642247256,-500.68782716,0.00019452,3]
[347257740,1735642247265,-1249.34,0.00019452,3]
[347257741,1735642247275,-500.0,0.00019452,3]
[347257742,1735642247284,-503.84291607,0.00019452,3]
[347257743,1735642247295,-500.0,0.00019452,3]
[347257744,1735642247305,-500.0,0.00019452,3]
[347257745,1735642247315,-500.0,0.00019452,2]
[347257746,1735642247324,-500.0,0.00019452,3]
[347257747,1735642247337,-500.0,0.00019452,3]
[347257748,1735642247346,-500.0,0.00019452,3]
[347257749,1735642247355,-526.88,0.00019452,3]
[347257750,1735642247364,-500.0,0.00019452,3]
[347257751,1735642247374,-500.0,0.00019452,3]
[347257752,1735642247384,-500.0,0.00019452,3]
[347257753,1735642247393,-500.0,0.00019452,3]
[347257754,1735642247402,-500.0,0.00019452,3]
[347257755,1735642247412,-500.0,0.00019452,3]
[347257756,1735642247422,-500.0,0.00019452,3]
[347257757,1735642247432,-500.0,0.00019452,3]
[347257758,1735642247442,-500.0,0.00019452,3]
[347257759,1735642247452,-500.0,0.00019452,3]
[347257760,1735642247462,-500.0,0.00019452,3]
[347257761,1735642247471,-500.0,0.00019452,3]
[347257762,1735642247482,-500.0,0.00019452,3]
[347257763,1735642247492,-500.0,0.00019452,3]
[347257764,1735642247503,-614.50981221,0.00019452,3]
[347257765,1735642247512,-500.0,0.00019452,3]
[347257766,1735642247523,-500.0,0.00019452,3]
[347257767,1735642247532,-500.0,0.00019452,3]
[347257768,1735642247542,-500.0,0.00019452,3]
[347257769,1735642247552,-500.0,0.00019452,3]
[347257770,1735642247561,-500.0,0.00019452,3]
[347257771,1735642247570,-503.46576888,0.00019452,3]
[347257772,1735642247579,-505.23739682,0.00019452,3]
[347257773,1735642247593,-500.0,0.00019452,3]
[347257774,1735642247604,-500.0,0.00019452,3]
[347257775,1735642247614,-500.0,0.00019452,3]
[347257776,1735642247623,-500.0,0.00019452,3]
[347257777,1735642247633,-311.6600258,0.00019452,3]
[347257778,1735642247643,-937.12,0.00019452,3]
[347257779,1735642247654,-609.45,0.00019452,3]
[347257780,1735642247664,-500.0,0.00019452,3]
[347257781,1735642247675,-500.0,0.00019452,3]
[347257782,1735642247685,-500.0,0.00019452,3]
[347257783,1735642247695,-875.34,0.00019452,3]
[347257784,1735642247706,-500.0,0.00019452,3]
[347257785,1735642247715,-500.0,0.00019452,3]
[347257786,1735642247725,-500.0,0.00019452,3]
[347257787,1735642247734,-753.81,0.00019452,3]
[347257788,1735642247743,-509.15987067,0.00019452,3]
[347257789,1735642247752,-500.0,0.00019452,3]
[347257790,1735642247762,-196.74969302,0.00019452,3]
[347257791,1735642247771,-500.0,0.00019452,3]
[347257792,1735642247781,-574.93,0.00019452,3]
[347257793,1735642247790,-500.0,0.00019452,3]
[347257794,1735642247799,-607.15,0.00019452,3]
[347257795,1735642247808,-500.0,0.00019452,3]
[347257796,1735642247817,-500.0,0.00019452,3]
[347257797,1735642247827,-500.0,0.00019452,3]
[347257798,1735642247838,-783.26,0.00019452,3]
[347257799,1735642247848,-504.00923443,0.00019452,3]
[347257800,1735642247857,-649.68750061,0.00019452,3]
[347257801,1735642247866,-500.0,0.00019452,3]
[347257802,1735642247875,-500.0,0.00019452,3]
[347257803,1735642247884,-500.0,0.00019452,3]
[347257804,1735642247894,-500.0,0.00019452,3]
[347257805,1735642247903,-500.0,0.00019452,3]
[347257806,1735642247912,-185.50587547,0.00019452,3]
[347257807,1735642247921,-367.44288356,0.00019452,3]
[347257808,1735642247930,-500.0,0.00019452,3]
[347257809,1735642247939,-645.83965025,0.00019452,3]
[347257810,1735642247949,-1119.56,0.00019452,3]
[347257811,1735642247958,-500.0,0.00019452,3]
[347257812,1735642247968,-500.0,0.00019452,3]
[347257813,1735642247978,-500.0,0.00019452,3]
[347257814,1735642247987,-500.0,0.00019452,3]
[347257815,1735642247996,-595.58716037,0.00019452,3]
[347257816,1735642248006,-500.0,0.00019452,3]
[347257817,1735642248015,-500.0,0.00019452,3]
[347257818,1735642248024,-500.0,0.00019452,3]
[347257819,1735642248033,-11600.71657775,0.00019452,3]
[347257820,1735642248269,-10005.77914135,0.00019452,3]
[347257821,1735642248280,-499.77566816,0.00019452,3]
[347257822,1735642248293,-4612.66861274,0.00019452,3]
[347257823,1735642248302,-1359.16,0.00019452,3]
[347257824,1735642248314,-500.0,0.00019452,3]
[347257825,1735642248323,-500.0,0.00019452,3]
[347257826,1735642248337,-449.56519788,0.00019452,3]
[347257827,1735642248351,-50.43480212,0.00019452,3]
[347257828,1735642248361,-500.0,0.00019452,3]
[347257829,1735642248371,-1248.49,0.00019452,3]
[347257830,1735642248380,-500.0,0.00019452,3]
[347257831,1735642248390,-500.0,0.00019452,3]
[347257832,1735642248400,-601.38,0.00019452,3]
[347257833,1735642248410,-1100.45,0.00019452,3]
[347257834,1735642248419,-500.0,0.00019452,3]
[347257835,1735642248428,-500.0,0.00019452,3]
[347257836,1735642248438,-500.0,0.00019452,3]
[347257837,1735642248447,-500.0,0.00019452,3]
[347257838,1735642248457,-383.46726627,0.00019452,3]
[347257839,1735642248466,-500.0,0.00019452,3]
[347257840,1735642248476,-500.0,0.00019452,3]
[347257841,1735642248485,-500.0,0.00019452,3]
[347257842,1735642248494,-500.0,0.00019452,3]
[347257843,1735642248504,-500.0,0.00019452,3]
[347257844,1735642248514,-500.0,0.00019452,3]
[347257845,1735642248523,-719.68,0.00019452,3]
[347257846,1735642248532,-500.0,0.00019452,3]
[347257847,1735642248542,-500.0,0.00019452,3]
[347257848,1735642248552,-429.0696,0.00019452,3]
[347257849,1735642248561,-500.0,0.00019452,3]
[347257850,1735642248570,-3831.31,0.00019452,3]
[347257851,1735642248580,-500.0,0.00019452,3]
[347257852,1735642248591,-500.0,0.00019452,3]
[347257853,1735642248600,-500.0,0.00019452,3]
[347257854,1735642248609,-500.0,0.00019452,3]
[347257855,1735642248618,-500.0,0.00019452,3]
[347257856,1735642248628,-500.0,0.00019452,3]
[347257857,1735642248638,-500.0,0.00019452,3]
[347257858,1735642248647,-1111.9,0.00019452,3]
[347257859,1735642248657,-500.0,0.00019452,3]
[347257860,1735642248666,-219.27100576,0.00019452,3]
[347257861,1735642248675,-464.4897719,0.00019452,3]
[347257862,1735642248688,-35.5102281,0.00019452,3]
[347257863,1735642248698,-500.0,0.00019452,3]
[347257864,1735642248708,-308.68059564,0.00019452,3]
[347257865,1735642248911,-172.59184274,0.00019,2]
[347257866,1735642248921,-172.59184272,0.00019,2]
[347257867,1735642248930,-152.0408817,0.00019173,2]
[347257868,1735642248939,-500.0,0.00019178,2]
[347257869,1735642248948,-213.98043284,0.00019178,2]
[347257870,1735642248960,-286.01956716,0.00019178,2]
[347257871,1735642248969,-546.11,0.00019178,2]
[347257872,1735642248979,-191.31940436,0.00019452,3]
[347257873,1735642248989,-500.0,0.00019452,3]
[347257874,1735642248998,-500.0,0.00019452,3]
[347257875,1735642249007,-589.2,0.00019452,3]
[347257876,1735642249016,-614.84,0.00019452,3]
[347257877,1735642249025,-500.0,0.00019452,3]
[347257878,1735642249035,-500.0,0.00019452,3]
[347257879,1735642249044,-836.37,0.00019452,3]
[347257880,1735642249053,-500.0,0.00019452,3]
[347257881,1735642249063,-500.0,0.00019452,3]
[347257882,1735642249071,-3803.5,0.00019452,3]
[347257883,1735642249080,-500.0,0.00019452,3]
[347257884,1735642249091,-500.0,0.00019452,3]
[347257885,1735642249101,-500.0,0.00019452,3]
[347257886,1735642249110,-500.0,0.00019452,3]
[347257887,1735642249120,-195.93171395,0.00019452,3]
[347257888,1735642249129,-500.0,0.00019452,3]
[347257889,1735642249139,-500.0,0.00019452,3]
[347257890,1735642249148,-500.0,0.00019452,3]
[347257891,1735642249157,-500.0,0.00019452,2]
[347257892,1735642249166,-500.0,0.00019452,3]
[347257893,1735642249175,-500.0,0.00019452,3]
[347257894,1735642249184,-2067.19,0.00019452,3]
[347257895,1735642249193,-500.0,0.00019452,3]
[347257896,1735642249202,-500.0,0.00019452,3]
[347257897,1735642249212,-500.0,0.00019452,3]
[347257898,1735642249222,-500.0,0.00019452,3]
[347257899,1735642249231,-500.0,0.00019452,3]
[347257900,1735642249240,-500.0,0.00019452,3]
[347257901,1735642249249,-515.08143712,0.00019452,3]
[347257902,1735642249259,-500.0,0.00019452,3]
[347257903,1735642249268,-500.0,0.00019452,3]
[347257904,1735642249277,-1466.09,0.00019452,3]
[347257905,1735642249286,-2740.83,0.00019452,3]
[347257906,1735642249299,-500.0,0.00019452,3]
[347257907,1735642249310,-393.57586248,0.00019452,3]
[347257908,1735642249319,-500.0,0.00019452,3]
[347257909,1735642249328,-872.67,0.00019452,3]
[347257910,1735642249341,-500.0,0.00019452,3]
[347257911,1735642249349,-500.0,0.00019452,3]
[347257912,1735642249359,-1204.12,0.00019452,3]
[347257913,1735642249441,-500.0,0.00019452,3]
[347257914,1735642249452,-500.0,0.00019452,3]
[347257915,1735642249462,-500.0,0.00019452,3]
[347257916,1735642249471,-500.0,0.00019452,3]
[347257917,1735642249480,-5246.58,0.00019452,3]
[347257918,1735642249490,-48.35922106,0.00019452,3]
[347257919,1735642249802,-500.0,0.00019178,2]
[347257920,1735642249811,-500.0,0.00019178,2]
[347257921,1735642249820,-500.0,0.00019178,2]
[347257922,1735642249829,-500.0,0.00019178,2]
[347257923,1735642249841,-610.17023921,0.00019178,2]
[347257924,1735642249853,-502.83048935,0.00019178,2]
[347257925,1735642249863,-451.64077894,0.00019452,3]
[347257926,1735642249872,-500.0,0.00019452,3]
[347257927,1735642249881,-500.0,0.00019452,3]
[347257928,1735642249890,-2214.55,0.00019452,3]
[347257929,1735642249899,-500.0,0.00019452,3]
[347257930,1735642249908,-500.000002,0.00019452,3]
[347257931,1735642249917,-500.0,0.00019452,3]
[347257932,1735642249926,-3188.49,0.00019452,3]
[347257933,1735642249935,-500.0,0.00019452,3]
[347257934,1735642249944,-505.83756815,0.00019452,3]
[347257935,1735642249953,-500.0,0.00019452,3]
[347257936,1735642249963,-500.0,0.00019452,3]
[347257937,1735642249972,-500.0,0.00019452,3]
[347257938,1735642249981,-266.18,0.00019452,3]
[347257939,1735642249991,-500.0,0.00019452,3]
[347257940,1735642250000,-546.11,0.00019452,3]
[347257941,1735642250009,-507.99,0.00019452,3]
[347257942,1735642250019,-500.0,0.00019452,3]
[347257943,1735642250028,-500.62183059,0.00019473,2]
[347257944,1735642250038,-518.92716403,0.00019473,2]
[347257945,1735642250048,-500.0,0.00019473,2]
[347257946,1735642250057,-500.96962135,0.00019473,2]
[347257947,1735642250066,-151.0,0.000197,2]
[347257948,1735642250076,-500.0,0.00019726,3]
[347257949,1735642250086,-500.0,0.00019726,3]
[347257950,1735642250103,-500.0,0.00019726,3]
[347257951,1735642250112,-500.0,0.00019726,3]
[347257952,1735642250121,-500.0,0.00019726,3]
[347257953,1735642250130,-501.9451101,0.00019726,3]
[347257954,1735642250140,-500.0,0.00019726,3]
[347257955,1735642250149,-1000.0,0.00019726,3]
[347257956,1735642250158,-500.0,0.00019726,3]
[347257957,1735642250167,-500.0,0.00019726,3]
[347257958,1735642250176,-500.0,0.00019726,3]
[347257959,1735642250185,-500.0,0.00019726,3]
[347257960,1735642250194,-500.0,0.00019726,3]
[347257961,1735642250204,-6980.9,0.00019726,3]
[347257962,1735642250213,-500.0,0.00019726,3]
[347257963,1735642250222,-500.0,0.00019726,3]
[347257964,1735642250231,-1249.34,0.00019726,3]
[347257965,1735642250240,-373.37975935,0.00019726,3]
[347257966,1735642250249,-500.0,0.00019726,2]
[347257967,1735642250259,-500.0,0.00019726,3]
[347257968,1735642250269,-500.0,0.00019726,3]
[347257969,1735642250278,-500.0,0.00019726,3]
[347257970,1735642250287,-521.87654945,0.00019726,3]
[347257971,1735642250296,-500.0,0.00019726,3]
[347257972,1735642250305,-500.0,0.00019726,3]
[347257973,1735642250319,-500.0,0.00019726,3]
[347257974,1735642250328,-500.0,0.00019726,3]
[347257975,1735642250340,-578.6,0.00019726,3]
[347257976,1735642250349,-500.0,0.00019726,3]
[347257977,1735642250359,-500.0,0.00019726,3]
[347257978,1735642250368,-363.30281205,0.00019726,3]
[347257979,1735642250377,-500.0,0.00019726,3]
[347257980,1735642250387,-500.0,0.00019726,3]
[347257981,1735642250396,-500.0,0.00019726,3]
[347257982,1735642250405,-553.61694747,0.00019726,3]
[347257983,1735642250414,-500.0,0.00019726,3]
[347257984,1735642250423,-500.0,0.00019726,3]
[347257985,1735642250432,-500.0,0.00019726,3]
[347257986,1735642250442,-937.12,0.00019726,3]
[347257987,1735642250450,-500.0,0.00019726,3]
[347257988,1735642250460,-500.0,0.00019726,3]
[347257989,1735642250469,-875.34,0.00019726,3]
[347257990,1735642250479,-500.0,0.00019726,3]
[347257991,1735642250488,-753.81,0.00019726,3]
[347257992,1735642250496,-644.24214717,0.00019726,3]
[347257993,1735642250505,-500.0,0.00019726,3]
[347257994,1735642250515,-574.93,0.00019726,3]
[347257995,1735642250524,-500.0,0.00019726,3]
[347257996,1735642250533,-607.15,0.00019726,3]
[347257997,1735642250542,-500.0,0.00019726,3]
[347257998,1735642250552,-783.26,0.00019726,3]
[347257999,1735642250561,-500.0,0.00019726,3]
[347258000,1735642250571,-500.0,0.00019726,3]
[347258001,1735642250580,-500.0,0.00019726,3]
[347258002,1735642250593,-500.0,0.00019726,3]
[347258003,1735642250602,-500.0,0.00019726,3]
[347258004,1735642250611,-1119.56,0.00019726,3]
[347258005,1735642250620,-500.0,0.00019726,3]
[347258006,1735642250628,-500.0,0.00019726,3]
[347258007,1735642250637,-325.03711164,0.00019726,3]
[347258008,1735642250646,-500.0,0.00019726,3]
[347258009,1735642250655,-26718.94,0.00019726,3]
[347258010,1735642250724,-1359.16,0.00019726,3]
[347258011,1735642250733,-500.0,0.00019726,3]
[347258012,1735642250742,-500.0,0.00019726,3]
[347258013,1735642250751,-500.0,0.00019726,3]
[347258014,1735642250760,-500.0,0.00019726,3]
[347258015,1735642250770,-1248.49,0.00019726,3]
[347258016,1735642250779,-500.0,0.00019726,3]
[347258017,1735642250788,-601.38,0.00019726,3]
[347258018,1735642250797,-1100.45,0.00019726,3]
[347258019,1735642250806,-500.0,0.00019726,3]
[347258020,1735642250815,-500.0,0.00019726,3]
[347258021,1735642250824,-500.0,0.00019726,3]
[347258022,1735642250833,-500.0,0.00019726,3]
[347258023,1735642250846,-500.0,0.00019726,3]
[347258024,1735642250855,-500.0,0.00019726,3]
[347258025,1735642250864,-500.0,0.00019726,3]
[347258026,1735642250873,-719.68,0.00019726,3]
[347258027,1735642250883,-500.0,0.00019726,3]
[347258028,1735642250891,-500.0,0.00019726,3]
[347258029,1735642250900,-500.0,0.00019726,3]
[347258030,1735642250909,-3831.31,0.00019726,3]
[347258031,1735642250918,-500.0,0.00019726,3]
[347258032,1735642250927,-500.0,0.00019726,3]
[347258033,1735642250936,-239.99858755,0.00019726,3]
[347258034,1735642250946,-500.0,0.00019726,3]
[347258035,1735642250955,-1111.9,0.00019726,3]
[347258036,1735642250964,-500.0,0.00019726,3]
[347258037,1735642250972,-500.0,0.00019726,3]
[347258038,1735642250982,-500.0,0.00019726,3]
[347258039,1735642250991,-500.0,0.00019726,3]
[347258040,1735642251000,-500.0,0.00019726,3]
[347258041,1735642251009,-500.0,0.00019726,3]
[347258042,1735642251018,-589.2,0.00019726,3]
[347258043,1735642251027,-614.84,0.00019726,3]
[347258044,1735642251038,-836.37,0.00019726,3]
[347258045,1735642251047,-500.0,0.00019726,3]
[347258046,1735642251056,-1783.77587488,0.00019726,3]
[347258047,1735642251431,300.0,0.00025,120]
[347258108,1735643068592,500.0,0.00022043,120]
[347258109,1735643146134,-201.888124,0.00013833,2]
[347258110,1735643146154,-201.888124,0.00013973,2]
[347258111,1735643146173,-201.89938,0.0001712,2]
[347258112,1735643146193,-564.24783881,0.00017788,2]
[347258113,1735643147098,-833.20061779,0.00017788,2]
[347258114,1735643147120,-300.0,0.00017932,2]
[347258115,1735643147143,-729.55720365,0.00017933,2]
[347258116,1735643205192,-150.44,0.00013699,2]
[347258117,1735643205214,-150.44711558,0.00013699,2]
[347258118,1735643205235,-144.72104807,0.00017576,2]
[347258119,1735643236102,-86.51881549,0.00017576,2]
[347258120,1735643236124,-196.26215048,0.00017654,2]
[347258121,1735643236146,-1608.9417873,0.00017754,2]
[347258122,1735643247099,-176.15104136,0.00017754,2]
[347258181,1735643432124,-786.7097736,0.00016823,2]
[347258183,1735643432133,-513.651573,0.00016941,2]
[347258185,1735643432143,-215.3997763,0.00017297,2]
[347258187,1735643432152,-215.3997763,0.00017472,2]
[347258189,1735643432161,-196.26215048,0.00017654,2]
[347258191,1735643432170,-300.0,0.00017851,2]
[347258193,1735643432180,-3971.1734551,0.00017854,2]
[347258195,1735643432189,-20937.39363449,0.00017932,2]
[347258197,1735643432201,-74413.60636551,0.00017932,2]
[347258199,1735643432211,-7763.98330083,0.00017933,2]
[347258202,1735643432275,-16406.45949552,0.00017933,2]
[347258203,1735643432284,-1007.2179891,0.00018126,2]
[347258204,1735643432294,-2332.57404925,0.0001846,2]
[347258205,1735643432306,-5276.5096845,0.0001846,2]
[347258206,1735643432318,-939.37854134,0.0001846,2]
[347258207,1735643432328,-412.76645866,0.00018636,2]
[347258213,1735643437782,-786.7097736,0.00016655,2]
[347258214,1735643437793,-87.23354134,0.00018636,2]
[347258215,1735643437802,-450.0,0.00018636,2]
[347258216,1735643437812,-500.0,0.00018636,2]
[347258217,1735643437821,-500.0,0.00018636,2]
[347258218,1735643437830,-500.0,0.00018636,2]
[347258219,1735643437840,-500.0,0.00018636,2]
[347258220,1735643437850,-500.0,0.00018636,2]
[347258221,1735643437859,-500.0,0.00018636,2]
[347258222,1735643437868,-614.51241686,0.00018636,2]
[347258223,1735643437878,-500.0,0.00018636,2]
[347258224,1735643437887,-500.0,0.00018636,2]
[347258225,1735643437896,-500.0,0.00018636,2]
[347258226,1735643437906,-500.0,0.00018636,2]
[347258227,1735643437915,-500.0,0.00018636,2]
[347258228,1735643437924,-500.0,0.00018636,2]
[347258229,1735643437934,-500.0,0.00018636,2]
[347258230,1735643437944,-160.53198433,0.00018636,2]
[347258231,1735643437953,-500.0,0.00018636,2]
[347258232,1735643437963,-500.0,0.00018636,2]
[347258233,1735643437972,-500.0,0.00018636,2]
[347258234,1735643437981,-340.91366939,0.00018636,2]
[347258235,1735643437991,-500.0,0.00018636,2]
[347258236,1735643438000,-592.25473407,0.00018636,2]
[347258237,1735643438009,-500.0,0.00018636,2]
[347258238,1735643438019,-500.0,0.00018636,2]
[347258239,1735643438029,-500.0,0.00018636,2]
[347258240,1735643438038,-500.0,0.00018636,2]
[347258242,1735643438048,-500.0,0.00018636,2]
[347258244,1735643438058,-500.0,0.00018636,2]
[347258246,1735643438068,-500.0,0.00018636,2]
[347258247,1735643438077,-500.0,0.00018636,2]
[347258248,1735643438088,-500.0,0.00018636,2]
[347258249,1735643438097,-500.0,0.00018636,2]
[347258250,1735643438107,-500.0,0.00018636,2]
[347258251,1735643438116,-500.0,0.00018636,2]
[347258252,1735643438126,-500.0,0.00018636,2]
[347258253,1735643438144,-500.0,0.00018636,2]
[347258254,1735643438160,-500.0,0.00018636,2]
[347258255,1735643438176,-500.0,0.00018636,2]
[347258256,1735643438193,-500.0,0.00018636,2]
[347258257,1735643438211,-500.0,0.00018636,2]
[347258258,1735643438228,-500.0,0.00018636,2]
[347258259,1735643438243,-500.0,0.00018636,2]
[347258260,1735643438260,-500.0,0.00018636,2]
[347258261,1735643438274,-500.0,0.00018636,2]
[347258262,1735643438288,-500.0,0.00018636,2]
[347258263,1735643438305,-500.0,0.00018636,2]
[347258264,1735643438320,-500.0,0.00018636,2]
[347258265,1735643438338,-500.0,0.00018636,2]
[347258266,1735643438356,-500.0,0.00018636,2]
[347258267,1735643438367,-500.0,0.00018636,2]
[347258268,1735643438382,-500.0,0.00018636,2]
[347258269,1735643438398,-500.0,0.00018636,2]
[347258270,1735643438430,-500.0,0.00018636,2]
[347258271,1735643438453,-500.0,0.00018636,2]
[347258272,1735643438466,-500.0,0.00018636,2]
[347258273,1735643438482,-500.0,0.00018636,2]
[347258274,1735643438505,-500.0,0.00018636,2]
[347258275,1735643438523,-500.0,0.00018636,2]
[347258276,1735643438539,-500.0,0.00018636,2]
[347258277,1735643438556,-500.0,0.00018636,2]
[347258278,1735643438571,-500.0,0.00018636,2]
[347258279,1735643438586,-500.0,0.00018636,2]
[347258280,1735643438600,-500.0,0.00018636,2]
[347258281,1735643438615,-500.0,0.00018636,2]
[347258282,1735643438630,-500.0,0.00018636,2]
[347258283,1735643438643,-500.0,0.00018636,2]
[347258284,1735643438658,-500.0,0.00018636,2]
[347258285,1735643438674,-500.0,0.00018636,2]
[347258286,1735643438689,-500.0,0.00018636,2]
[347258287,1735643438703,-500.0,0.00018636,2]
[347258288,1735643438718,-500.0,0.00018636,2]
[347258289,1735643438731,-500.0,0.00018636,2]
[347258290,1735643438744,-500.0,0.00018636,2]
[347258291,1735643438759,-500.0,0.00018636,2]
[347258292,1735643438772,-500.0,0.00018636,2]
[347258293,1735643438786,-500.0,0.00018636,2]
[347258294,1735643438801,-500.0,0.00018636,2]
[347258295,1735643438815,-500.0,0.00018636,2]
[347258296,1735643438829,-500.0,0.00018636,2]
[347258297,1735643438843,-500.0,0.00018636,2]
[347258298,1735643438857,-250.0,0.00018636,2]
[347258299,1735643438869,-500.0,0.00018636,2]
[347258300,1735643438879,-500.0,0.00018636,2]
[347258301,1735643438889,-500.0,0.00018636,2]
[347258302,1735643438898,-500.0,0.00018636,2]
[347258303,1735643439030,-500.0,0.00018636,2]
[347258304,1735643439051,-500.0,0.00018636,2]
[347258305,1735643439061,-500.0,0.00018636,2]
[347258306,1735643439070,-500.0,0.00018636,2]
[347258307,1735643439080,-500.0,0.00018636,2]
[347258308,1735643439089,-500.0,0.00018636,2]
[347258309,1735643439099,-500.0,0.00018636,2]
[347258310,1735643439109,-500.0,0.00018636,2]
[347258311,1735643439119,-325.46312001,0.00018636,2]
[347258312,1735643439128,-500.0,0.00018636,2]
[347258313,1735643439138,-500.0,0.00018636,2]
[347258314,1735643439147,-500.0,0.00018636,2]
[347258315,1735643439156,-500.0,0.00018636,2]
[347258316,1735643439165,-500.0,0.00018636,2]
[347258317,1735643439175,-500.0,0.00018636,2]
[347258318,1735643439184,-500.0,0.00018636,2]
[347258319,1735643439194,-8548.46227509,0.00018637,2]
[347258320,1735643439204,-172.59184272,0.00019,2]
[347258321,1735643439214,-1027.59600186,0.00019073,2]
[347258322,1735643439224,-1027.59600185,0.00019143,2]
[347258323,1735643439233,-8548.46227509,0.00019167,2]
[347258324,1735643439243,-281.36215528,0.00019173,2]
[347258325,1735643439252,-500.0,0.00019173,2]
[347258327,1735643439262,-500.77898859,0.00019173,2]
[347258329,1735643439271,-500.0,0.00019173,2]
[347258330,1735643439280,-265.56263697,0.00019173,2]
[347258331,1735643439290,-200.03082766,0.00019173,2]
[347258332,1735643439302,-200.05493279,0.00019173,2]
[347258333,1735643439312,-500.0,0.00019173,2]
[347258334,1735643439321,-500.0,0.00019173,2]
[347258335,1735643439330,-168.04613863,0.00019173,2]
[347258336,1735643439340,-155.04083465,0.00019173,2]
[347258337,1735643439349,-152.04004429,0.00019173,2]
[347258338,1735643439359,-500.0,0.00019173,2]
[347258339,1735643439368,-151.04114353,0.00019173,2]
[347258340,1735643439378,-215.05904647,0.00019173,2]
[347258341,1735643439387,-500.0,0.00019173,2]
[347258342,1735643439397,-500.9464827,0.00019173,2]
[347258343,1735643439408,-266.56044762,0.00019173,2]
[347258344,1735643439417,-468.31808077,0.00019173,2]
[347258345,1735643439427,-500.0,0.00019173,2]
[347258346,1735643439436,-500.0,0.00019173,2]
[347258347,1735643439446,-500.0,0.00019173,2]
[347258348,1735643439456,-441.0565358,0.00019173,2]
[347258349,1735643439465,-354.676,0.00019173,2]
[347258351,1735643439475,-482.85593205,0.00019177,2]
[347258352,1735643439484,-500.0,0.00019177,2]
[347258353,1735643439494,-225.33084647,0.00019177,2]
[347258354,1735643439505,-500.0,0.00019177,2]
[347258355,1735643439515,-499.51039631,0.00019177,2]
[347258356,1735643439525,-157.73159252,0.00019177,2]
[347258357,1735643439535,-500.0,0.00019178,2]
[347258358,1735643439546,-500.0,0.00019178,2]
[347258359,1735643439556,-500.0,0.00019178,2]
[347258360,1735643439566,-500.0,0.00019178,2]
[347258361,1735643439576,-500.0,0.00019178,2]
[347258362,1735643439586,-500.0,0.00019178,2]
[347258363,1735643439596,-184.31590418,0.00019178,2]
[347258364,1735643439606,-500.0,0.00019178,2]
[347258365,1735643439615,-500.0,0.00019178,2]
[347258366,1735643439624,-500.0,0.00019178,2]
[347258367,1735643439634,-500.0,0.00019178,2]
[347258368,1735643439643,-500.0,0.00019178,2]